bitfinex/quotes_SOLUSD_20250401
["timestamp","ask_amount","ask_price","bid_price","bid_amount"]
[1743500425893,35.03855514,128.9,128.89,20.14216157]
[1743500426497,27.28065514,128.9,128.89,20.14216157]
[1743500426698,20.063,128.9,128.89,20.14216157]
[1743500426993,0.063,128.9,128.89,38.933972]
[1743500427202,0.063,128.9,128.89,262.433972]
[1743500430286,7.28065514,128.9,128.89,262.433972]
[1743500431599,0.063,128.9,128.89,262.433972]
[1743500431786,0.063,128.9,128.89,270.192472]
[1743500432392,0.063,128.9,128.89,262.433972]
[1743500435307,7.28065514,128.9,128.89,262.433972]
[1743500435501,7.28065514,128.9,128.89,243.5]
[1743500436220,35.03855514,128.9,128.89,243.5]
[1743500440314,35.03855514,128.9,128.89,223.5]
[1743500440606,65.03855514,128.9,128.89,223.5]
[1743500441504,57.8209,128.9,128.89,223.5]
[1743500441689,65.03855514,128.9,128.89,223.5]
[1743500446615,45.03855514,128.9,128.89,223.5]
[1743500455703,15.03855514,128.9,128.89,223.5]
[1743500458734,28.56855514,128.9,128.89,223.5]
[1743500460926,20.0,128.88,128.87,20.03]
[1743500461119,56.0882757,128.88,128.84,0.20516157]
[1743500461429,7.21765514,128.85,128.84,0.20516157]
[1743500461626,20.0,128.85,128.84,0.20516157]
[1743500461821,20.0,128.85,128.84,38.71264886]
[1743500462341,88.91765514,128.87,128.85,0.14216157]
[1743500462518,30.0,128.86,128.85,0.14216157]
[1743500462709,81.7,128.87,128.85,0.14216157]
[1743500462908,88.91765514,128.87,128.85,0.14216157]
[1743500463105,96.67745514,128.87,128.85,0.14216157]
[1743500463630,96.67745514,128.87,128.85,0.28432314]
[1743500463839,7.21765514,128.86,128.85,0.28432314]
[1743500464019,7.21765514,128.86,128.84,20.063]
[1743500464218,89.4598,128.87,128.84,20.34732314]
[1743500464219,27.21765514,128.85,128.84,20.34732314]
[1743500464529,27.21765514,128.85,128.84,0.063]
[1743500464530,34.97855514,128.85,128.84,0.063]
[1743500466842,34.97855514,128.85,128.84,223.643]
[1743500467635,27.21765514,128.85,128.84,223.643]
[1743500467834,34.97855514,128.85,128.84,223.643]
[1743500468143,27.21765514,128.85,128.84,223.643]
[1743500468526,34.97855514,128.85,128.84,223.643]
[1743500471413,81.7,128.87,128.85,20.28432314]
[1743500471830,81.7,128.87,128.86,20.492772]
[1743500472228,7.28065514,128.9,128.88,20.0]
[1743500472421,30.0,128.89,128.88,20.28432314]
[1743500473034,30.0,128.89,128.88,38.933972]
[1743500473645,30.0,128.89,128.88,46.693072]
[1743500473945,0.063,128.9,128.89,0.28432314]
[1743500477444,0.063,128.9,128.89,8.04282314]
[1743500477631,0.063,128.9,128.89,0.28432314]
[1743500482730,0.063,128.9,128.89,8.04282314]
[1743500482930,0.063,128.9,128.89,26.692472]
[1743500484052,0.063,128.9,128.89,28.289472]
[1743500485940,0.063,128.9,128.89,20.530972]
[1743500486556,0.063,128.9,128.89,244.030972]
[1743500486851,0.063,128.9,128.89,251.789472]
[1743500488947,0.063,128.9,128.89,244.030972]
[1743500489152,0.063,128.9,128.89,242.433972]
[1743500491661,0.063,128.9,128.89,250.192472]
[1743500492961,0.063,128.9,128.89,251.724372]
[1743500493946,0.063,128.9,128.89,257.799672]
[1743500494262,0.063,128.9,128.89,34.299672]
[1743500496748,0.063,128.9,128.89,251.684372]
[1743500508973,0.063,128.9,128.89,250.152472]
[1743500509678,0.063,128.9,128.89,242.393972]
[1743500512177,0.063,128.9,128.89,250.152472]
[1743500512386,0.063,128.9,128.89,242.393972]
[1743500512875,0.063,128.9,128.89,250.152472]
[1743500513872,0.063,128.9,128.89,242.393972]
[1743500514261,0.063,128.9,128.89,250.152472]
[1743500518683,0.063,128.9,128.89,223.74432314]
[1743500518978,0.063,128.9,128.89,242.393972]
[1743500520890,27.28065514,128.9,128.89,223.74432314]
[1743500521885,27.28065514,128.9,128.89,223.46]
[1743500522081,35.03855514,128.9,128.89,223.46]
[1743500530770,27.28065514,128.9,128.89,223.46]
[1743500530975,35.03855514,128.9,128.89,223.46]
[1743500544701,15.03855514,128.9,128.89,223.46]
[1743500548401,20.0,128.87,128.86,20.0]
[1743500548610,34.97735514,128.87,128.86,243.82432314]
[1743500549206,34.97735514,128.87,128.86,223.82432314]
[1743500549407,34.97735514,128.87,128.86,223.54]
[1743500550289,34.97735514,128.87,128.85,0.03]
[1743500550490,7.21765514,128.86,128.84,223.623]
[1743500550688,14.97855514,128.85,128.84,223.623]
[1743500554299,21.21716432,128.85,128.84,223.623]
[1743500556495,14.97855514,128.85,128.84,223.623]
[1743500557303,7.21765514,128.85,128.84,223.623]
[1743500558500,7.21765514,128.85,128.84,243.90732314]
[1743500560999,20.0,128.85,128.84,243.90732314]
[1743500561199,27.21765514,128.85,128.84,243.90732314]
[1743500561914,27.28065514,128.85,128.84,243.90732314]
[1743500562416,7.28065514,128.85,128.84,243.90732314]
[1743500562919,0.063,128.85,128.84,270.318472]
[1743500563118,88.77588149,128.87,128.86,20.28432314]
[1743500563309,88.77588149,128.87,128.86,38.933972]
[1743500563717,88.77588149,128.87,128.86,20.28432314]
[1743500564212,81.55822635,128.87,128.86,38.933972]
[1743500564411,81.55822635,128.87,128.86,262.533972]
[1743500565338,0.063,128.9,128.89,0.28432314]
[1743500565507,7.28065514,128.9,128.89,0.28432314]
[1743500566943,0.063,128.9,128.89,0.28432314]
[1743500567234,0.063,128.9,128.89,8.04282314]
[1743500567435,0.063,128.9,128.89,26.692472]
[1743500570412,0.063,128.9,128.89,18.933972]
[1743500572444,7.28065514,128.9,128.89,18.933972]
[1743500573229,0.063,128.9,128.89,18.933972]
[1743500573415,0.063,128.9,128.89,26.692472]
[1743500574033,0.063,128.9,128.89,18.933972]
[1743500577124,0.063,128.9,128.89,26.692472]
[1743500579115,0.063,128.9,128.89,28.347472]
[1743500586735,0.063,128.9,128.89,251.807472]
[1743500587417,0.063,128.9,128.89,252.307472]
[1743500587624,7.21765514,128.96,128.95,20.28432314]
[1743500587835,7.21765514,128.97,128.96,0.28432314]
[1743500588422,14.97135514,128.97,128.96,0.28432314]
[1743500589158,7.21765514,128.97,128.96,0.28432314]
[1743500590554,14.97135514,128.97,128.96,0.28432314]
[1743500592538,7.21765514,128.97,128.96,0.28432314]
[1743500592859,7.21765514,128.97,128.96,223.72432314]
[1743500593357,14.97135514,128.97,128.96,223.72432314]
[1743500594058,14.97135514,128.97,128.96,223.44]
[1743500594962,20.0,128.94,128.91,20.0]
[1743500595252,20.0,128.94,128.92,0.28432314]
[1743500596158,20.0,128.94,128.93,20.28432314]
[1743500596322,27.21765514,128.94,128.93,38.933972]
[1743500596723,27.21765514,128.94,128.93,262.373972]
[1743500597036,7.21765514,128.96,128.94,18.933972]
[1743500597262,88.77588149,128.96,128.95,20.28432314]
[1743500605070,96.53018149,128.96,128.95,20.28432314]
[1743500605440,88.77588149,128.96,128.95,20.28432314]
[1743500607562,88.77588149,128.96,128.95,0.28432314]
[1743500608646,88.83888149,128.96,128.95,0.28432314]
[1743500608851,81.62122635,128.96,128.95,0.28432314]
[1743500609147,81.62122635,128.96,128.95,46.688872]
[1743500610150,0.063,128.96,128.95,46.688872]
[1743500613968,0.063,128.96,128.95,38.933972]
[1743500614163,7.28065514,128.96,128.95,38.933972]
[1743500614987,7.28065514,128.96,128.95,20.0]
[1743500615682,15.03495514,128.96,128.95,20.0]
[1743500617078,0.063,128.96,128.95,20.28432314]
[1743500617275,7.28065514,128.96,128.95,20.28432314]
[1743500619277,0.063,128.96,128.95,38.933972]
[1743500619977,7.28065514,128.96,128.95,38.933972]
[1743500621381,7.28065514,128.96,128.95,20.28432314]
[1743500622084,15.03495514,128.96,128.95,20.28432314]
[1743500624688,15.03495514,128.96,128.95,243.68432314]
[1743500626401,7.28065514,128.96,128.95,262.333972]
[1743500626981,15.03495514,128.96,128.95,262.333972]
[1743500627363,15.03495514,128.96,128.95,243.68432314]
[1743500633691,15.03495514,128.96,128.95,243.4]
[1743500635883,7.28065514,128.96,128.95,243.68432314]
[1743500637402,15.03495514,128.96,128.95,243.68432314]
[1743500639509,0.063,128.96,128.95,262.333972]
[1743500642990,7.28065514,128.96,128.95,262.333972]
[1743500647302,0.063,128.96,128.95,270.088872]
[1743500648215,0.063,128.96,128.95,262.333972]
[1743500648512,7.28065514,128.96,128.95,262.333972]
[1743500654521,0.063,128.96,128.95,262.333972]
[1743500655196,7.28065514,128.96,128.95,262.333972]
[1743500657124,0.063,128.96,128.95,270.088872]
[1743500661026,0.063,128.96,128.95,262.333972]
[1743500661815,7.28065514,128.96,128.95,262.333972]
[1743500663936,15.03495514,128.96,128.95,262.333972]
[1743500664733,7.28065514,128.96,128.95,262.333972]
[1743500675339,0.063,128.96,128.95,270.088872]
[1743500675927,0.063,128.96,128.95,271.651872]
[1743500679240,0.063,128.96,128.95,48.251872]
[1743500685650,0.063,128.97,128.96,18.933972]
[1743500686731,0.063,128.97,128.96,242.273972]
[1743500687465,0.063,128.97,128.96,250.028272]
[1743500687634,0.063,128.98,128.97,38.933972]
[1743500690256,0.063,128.98,128.97,46.687672]
[1743500696766,0.063,128.98,128.97,269.987672]
[1743500703370,0.063,128.98,128.97,270.050672]
[1743500705083,0.063,128.98,128.97,262.296972]
[1743500705379,7.28065514,128.98,128.97,262.296972]
[1743500706678,15.03375514,128.98,128.97,262.296972]
[1743500708448,15.03375514,128.98,128.97,243.64732314]
[1743500708655,16.68025514,128.98,128.97,243.363]
[1743500708854,22.85235514,128.98,128.97,223.363]
[1743500711386,15.6347,128.98,128.97,243.363]
[1743500711555,22.85235514,128.98,128.97,243.363]
[1743500712674,104.41058149,128.98,128.97,243.363]
[1743500714171,104.41058149,128.98,128.97,223.363]
[1743500716763,104.41058149,128.98,128.97,243.363]
[1743500716764,96.65748149,128.98,128.97,243.363]
[1743500717477,104.41058149,128.98,128.97,243.363]
[1743500718876,89.37432635,128.98,128.97,243.363]
[1743500719171,88.83888149,128.98,128.97,262.296972]
[1743500719373,0.063,128.98,128.97,262.296972]
[1743500726862,7.28065514,128.98,128.97,243.64732314]
[1743500728084,15.03375514,128.98,128.97,243.64732314]
[1743500728460,15.03375514,128.98,128.97,243.363]
[1743500734411,15.03375514,128.98,128.97,223.363]
[1743500735680,34.41655514,128.98,128.96,223.38]
[1743500735891,7.21765514,128.97,128.96,223.38]
[1743500737219,14.97135514,128.97,128.96,223.38]
[1743500738290,14.97135514,128.97,128.96,223.41]
[1743500738989,96.67135514,128.97,128.96,223.41]
[1743500742605,20.0,128.94,128.93,20.0]
[1743500742808,56.0882757,128.94,128.93,20.0]
[1743500743803,63.8437757,128.94,128.93,20.0]
[1743500744519,20.0,128.9,128.88,20.0]
[1743500744719,36.0882757,128.89,128.88,20.0]
[1743500745920,43.8467757,128.89,128.88,20.0]
[1743500746500,36.0882757,128.89,128.88,20.0]
[1743500748029,7.21765514,128.89,128.88,20.0]
[1743500750030,7.21765514,128.89,128.88,20.03]
[1743500755932,22.19381028,128.89,128.88,0.03]
[1743500756226,43.8467757,128.89,128.88,0.03]
[1743500756418,14.97615514,128.89,128.88,0.03]
[1743500757826,7.21765514,128.89,128.88,0.03]
[1743500758023,7.21765514,128.89,128.88,20.03]
[1743500758217,7.21765514,128.89,128.88,20.31432314]
[1743500760710,14.97615514,128.89,128.88,20.03]
[1743500761505,7.21765514,128.89,128.88,20.03]
[1743500761827,81.763,128.9,128.88,20.31432314]
[1743500762031,7.21765514,128.89,128.88,20.31432314]
[1743500762233,81.763,128.9,128.89,0.28432314]
[1743500762750,88.98065514,128.9,128.89,0.28432314]
[1743500764129,81.763,128.9,128.89,0.28432314]
[1743500765129,88.98065514,128.9,128.89,0.28432314]
[1743500766014,81.763,128.9,128.89,0.28432314]
[1743500768539,20.063,128.9,128.89,26.692472]
[1743500768715,0.063,128.9,128.89,26.692472]
[1743500769140,0.063,128.9,128.89,18.933972]
[1743500772339,0.063,128.9,128.89,26.692472]
[1743500775032,0.063,128.9,128.89,18.933972]
[1743500775228,7.28065514,128.9,128.89,18.933972]
[1743500775829,0.063,128.9,128.89,18.933972]
[1743500777848,0.063,128.9,128.89,242.433972]
[1743500779540,0.063,128.9,128.89,250.192472]
[1743500781751,0.063,128.9,128.89,242.433972]
[1743500785036,0.063,128.9,128.89,250.192472]
[1743500787448,0.063,128.9,128.89,242.433972]
[1743500787655,7.28065514,128.9,128.89,223.78432314]
[1743500788351,7.28065514,128.9,128.89,223.5]
[1743500790756,7.28065514,128.9,128.89,223.78432314]
[1743500790961,0.063,128.9,128.89,223.78432314]
[1743500791256,0.063,128.9,128.89,231.54282314]
[1743500794052,0.063,128.9,128.89,250.192472]
[1743500804054,0.063,128.9,128.89,242.433972]
[1743500805167,0.063,128.9,128.89,250.192472]
[1743500811457,0.063,128.9,128.89,26.692472]
[1743500811761,7.28065514,128.9,128.89,0.28432314]
[1743500812579,7.28065514,128.9,128.88,243.51]
[1743500812768,27.21765514,128.89,128.88,243.51]
[1743500813981,34.97615514,128.89,128.88,243.51]
[1743500815763,63.8467757,128.89,128.87,223.53]
[1743500815966,36.0882757,128.88,128.87,223.53]
[1743500818163,43.8473757,128.88,128.87,223.53]
[1743500818566,20.0,128.85,128.84,223.583]
[1743500821172,7.21765514,128.84,128.83,0.03]
[1743500822288,14.97915514,128.84,128.83,0.03]
[1743500824190,96.67915514,128.84,128.83,0.03]
[1743500826486,88.91765514,128.84,128.83,20.03]
[1743500826689,7.21765514,128.84,128.83,262.563972]
[1743500826985,7.21765514,128.85,128.84,20.28432314]
[1743500827378,27.21765514,128.85,128.84,20.28432314]
[1743500829671,27.21765514,128.85,128.83,223.63]
[1743500829672,34.97855514,128.85,128.83,223.63]
[1743500829890,7.21765514,128.84,128.83,223.63]
[1743500831381,7.28065514,128.84,128.83,223.63]
[1743500831581,7.28065514,128.84,128.83,242.563972]
[1743500843208,0.063,128.84,128.83,242.563972]
[1743500843387,0.063,128.84,128.83,250.326072]
[1743500843583,0.0001,128.84,128.83,256.769672]
[1743500843905,0.063,128.9,128.89,38.933972]
[1743500844099,0.063,128.9,128.89,45.192672]
[1743500844403,0.063,128.9,128.89,52.951172]
[1743500846304,81.7,128.96,128.95,20.28432314]
[1743500846512,81.7,128.96,128.95,243.88432314]
[1743500846691,111.7,128.96,128.95,243.88432314]
[1743500847211,88.91765514,128.96,128.95,243.88432314]
[1743500848584,88.91765514,128.96,128.95,243.6]
[1743500848789,88.91765514,128.96,128.95,223.6]
[1743500848989,96.67195514,128.96,128.95,223.6]
[1743500850313,88.91765514,128.96,128.95,223.6]
[1743500851787,96.67195514,128.96,128.95,223.6]
[1743500852795,88.91765514,128.96,128.95,223.6]
[1743500852999,88.91765514,128.96,128.95,243.6]
[1743500854217,88.98065514,128.96,128.95,243.6]
[1743500855403,96.73495514,128.96,128.95,243.6]
[1743500855807,96.73495514,128.96,128.95,223.6]
[1743500856116,15.03495514,128.96,128.95,223.6]
[1743500857003,20.0,128.93,128.92,243.46]
[1743500857207,27.21765514,128.93,128.92,223.46]
[1743500858590,108.91765514,128.93,128.92,223.46]
[1743500859420,116.67375514,128.93,128.92,223.46]
[1743500862421,108.91765514,128.93,128.92,223.46]
[1743500863315,88.91765514,128.93,128.92,223.46]
[1743500863515,81.763,128.96,128.95,20.0]
[1743500863720,96.73495514,128.96,128.95,20.0]
[1743500867427,96.73495514,128.96,128.95,20.28432314]
[1743500867428,7.28065514,128.96,128.95,20.28432314]
[1743500867604,15.03495514,128.96,128.95,20.28432314]
[1743500868010,7.28065514,128.96,128.95,20.28432314]
[1743500868901,15.03495514,128.96,128.95,20.28432314]
[1743500869306,15.03495514,128.96,128.95,20.0]
[1743500873727,7.28065514,128.96,128.95,20.0]
[1743500874432,0.063,128.96,128.95,243.72432314]
[1743500876332,88.74365514,128.97,128.95,243.72432314]
[1743500878132,0.063,128.96,128.95,243.72432314]
[1743500881031,0.063,128.96,128.95,270.128872]
[1743500881235,0.063,128.96,128.95,271.783972]
[1743500885618,0.063,128.96,128.95,264.029072]
[1743500885941,0.063,128.96,128.95,271.783972]
[1743500886419,0.063,128.96,128.95,264.029072]
[1743500886618,0.063,128.96,128.95,271.783972]
[1743500887641,0.063,128.96,128.95,262.373972]
[1743500889336,0.063,128.96,128.95,270.128872]
[1743500889738,0.063,128.96,128.95,262.373972]
[1743500889928,0.063,128.96,128.95,270.128872]
[1743500890636,0.063,128.96,128.95,262.373972]
[1743500891849,0.063,128.96,128.95,270.128872]
[1743500896843,0.063,128.96,128.95,262.373972]
[1743500902456,0.063,128.96,128.95,270.128872]
[1743500903151,0.063,128.96,128.95,271.695472]
[1743500903654,0.0001,128.96,128.95,271.695472]
[1743500903856,0.0001,128.96,128.95,278.237472]
[1743500904744,0.0001,128.96,128.95,54.797472]
[1743500904959,0.0001,128.97,128.96,18.933972]
[1743500905158,0.0001,128.97,128.96,20.48398841]
[1743500905448,0.0001,128.97,128.96,20.98398841]
[1743500905657,0.0001,128.97,128.96,20.48398841]
[1743500906139,0.0001,128.97,128.96,18.933972]
[1743500906736,0.0001,128.97,128.96,250.048272]
[1743500908259,0.0001,128.97,128.96,26.688272]
[1743500910763,0.0001,128.97,128.96,18.933972]
[1743500916772,0.0001,128.97,128.96,242.273972]
[1743500917270,7.21775514,128.97,128.96,242.273972]
[1743500917977,14.97145514,128.97,128.96,223.62432314]
[1743500918168,7.21775514,128.97,128.96,223.62432314]
[1743500919456,7.21775514,128.97,128.96,242.273972]
[1743500919859,0.0001,128.97,128.96,242.273972]
[1743500920880,0.0001,128.97,128.96,250.028272]
[1743500921171,0.0001,128.97,128.96,242.273972]
[1743500921976,7.21775514,128.97,128.96,223.62432314]
[1743500923444,7.21775514,128.97,128.96,242.273972]
[1743500924865,7.21775514,128.97,128.96,242.336972]
[1743500926573,0.0001,128.97,128.96,242.336972]
[1743500927080,0.0001,128.97,128.96,250.091272]
[1743500929556,0.0001,128.97,128.96,242.336972]
[1743500938276,7.21775514,128.97,128.96,242.336972]
[1743500939174,0.0001,128.97,128.96,242.336972]
[1743500939378,7.21775514,128.97,128.96,242.336972]
[1743500941009,0.0001,128.97,128.96,242.336972]
[1743500941507,7.21775514,128.97,128.96,242.336972]
[1743500941879,14.97145514,128.97,128.96,242.336972]
[1743500942080,14.97145514,128.97,128.96,223.68732314]
[1743500942406,14.97145514,128.97,128.96,223.403]
[1743500943181,42.24255514,128.97,128.95,223.36]
[1743500943381,7.21765514,128.96,128.95,223.36]
[1743500945815,14.97195514,128.96,128.95,223.36]
[1743500949316,27.2712,128.97,128.95,243.36]
[1743500949317,7.8869,128.97,128.95,243.36]
[1743500949609,7.21775514,128.97,128.96,0.28432314]
[1743500949814,0.0001,128.97,128.96,0.28432314]
[1743500949997,7.21775514,128.97,128.96,0.28432314]
[1743500951598,7.21775514,128.97,128.96,18.933972]
[1743500952018,0.0001,128.97,128.96,18.933972]
[1743500954812,7.21775514,128.97,128.96,18.933972]
[1743500956024,7.21775514,128.97,128.96,242.333972]
[1743500957542,7.21775514,128.97,128.96,223.68432314]
[1743500958001,14.97145514,128.97,128.96,223.68432314]
[1743500958410,14.97145514,128.97,128.96,223.4]
[1743500959018,7.21775514,128.97,128.96,223.4]
[1743500959197,7.21775514,128.97,128.96,223.463]
[1743500959526,14.97145514,128.97,128.96,223.463]
[1743500960723,7.21775514,128.97,128.96,223.463]
[1743500967628,0.0001,128.97,128.96,250.151272]
[1743500977132,0.063,128.99,128.98,20.28432314]
[1743500977338,0.063,128.99,128.98,21.85262314]
[1743500977644,0.063,128.99,128.98,40.502272]
[1743500978347,0.063,128.99,128.98,48.255372]
[1743500980542,0.063,128.99,128.98,46.687072]
[1743500980837,0.063,128.99,128.98,38.933972]
[1743500981639,27.28065514,128.99,128.98,262.273972]
[1743500982732,27.28065514,128.99,128.98,270.027072]
[1743500982939,20.063,128.99,128.98,270.027072]
[1743500983432,0.063,128.99,128.98,270.027072]
[1743500987449,0.0001,128.99,128.98,270.027072]
[1743500987626,0.0001,128.99,128.98,278.115672]
[1743500989443,0.03,129.01,129.0,20.28432314]
[1743500990039,0.03,129.01,129.0,38.933972]
[1743500991771,0.03,129.01,129.0,46.685872]
[1743500996769,0.03,129.01,129.0,269.945872]
[1743501000049,0.03,129.01,129.0,46.685872]
[1743501002846,0.03,129.01,129.0,38.933972]
[1743501003282,0.03,129.01,129.0,20.28432314]
[1743501003465,0.03,129.01,129.0,38.933972]
[1743501004164,0.03,129.01,129.0,46.685872]
[1743501006780,0.02999999,129.01,129.0,269.925872]
[1743501008786,9.999e-05,129.02,129.01,18.933972]
[1743501010980,9.999e-05,129.02,129.01,26.685272]
[1743501011286,9.999e-05,129.03,129.02,38.933972]
[1743501013378,9.999e-05,129.03,129.02,46.684672]
[1743501016678,0.03,129.04,129.03,18.933972]
[1743501017457,81.763,129.09,129.03,18.933972]
[1743501017458,81.763,129.09,129.08,0.28432314]
[1743501017663,0.063,129.09,129.08,0.28432314]
[1743501017863,27.28065514,129.09,129.08,0.28432314]
[1743501018163,27.28065514,129.09,129.08,18.933972]
[1743501019674,27.28065514,129.09,129.08,0.28432314]
[1743501019983,27.28065514,129.09,129.08,18.933972]
[1743501021967,27.28065514,129.09,129.08,242.113972]
[1743501025965,7.28065514,129.09,129.08,242.113972]
[1743501026395,7.28065514,129.09,129.08,223.46432314]
[1743501026608,7.28065514,129.09,129.08,249.861072]
[1743501027290,7.28065514,129.09,129.08,242.113972]
[1743501030503,7.28065514,129.09,129.08,223.18]
[1743501030504,15.02715514,129.09,129.08,223.18]
[1743501030791,50.0401757,129.09,129.05,20.0]
[1743501031002,7.21765514,129.06,129.05,20.0]
[1743501032079,7.21765514,129.06,129.05,38.933972]
[1743501032284,88.91765514,129.07,129.06,18.64964886]
[1743501032677,7.21765514,129.07,129.06,18.64964886]
[1743501034591,96.66545514,129.07,129.05,20.0]
[1743501034897,36.0882757,129.06,129.05,20.0]
[1743501035197,7.21765514,129.06,129.05,20.28432314]
[1743501036687,7.21765514,129.06,129.05,243.48432314]
[1743501037203,7.21765514,129.06,129.05,269.882872]
[1743501037389,7.21765514,129.07,129.06,20.0]
[1743501037794,7.21765514,129.07,129.06,38.64964886]
[1743501038505,7.21765514,129.07,129.06,20.28432314]
[1743501038885,14.96535514,129.07,129.06,20.28432314]
[1743501039401,14.96535514,129.07,129.06,20.0]
[1743501040900,7.21765514,129.07,129.06,20.28432314]
[1743501041908,7.28065514,129.09,129.08,20.28432314]
[1743501046094,7.28065514,129.09,129.08,38.933972]
[1743501046607,7.28065514,129.09,129.08,20.28432314]
[1743501047015,15.02715514,129.09,129.08,20.28432314]
[1743501048614,7.28065514,129.09,129.08,20.28432314]
[1743501049619,7.28065514,129.09,129.08,243.46432314]
[1743501050494,0.063,129.09,129.08,269.861072]
[1743501051516,0.063,129.09,129.08,262.113972]
[1743501052123,0.063,129.09,129.08,269.861072]
[1743501055723,0.03,129.1,129.09,18.933972]
[1743501056630,0.03,129.1,129.09,26.680472]
[1743501056832,0.03,129.1,129.09,249.840472]
[1743501065022,0.03,129.1,129.09,249.903472]
[1743501067138,0.03,129.1,129.09,242.156972]
[1743501067522,0.03,129.1,129.09,249.903472]
[1743501067831,0.03,129.1,129.09,242.156972]
[1743501071425,0.03,129.1,129.09,249.903472]
[1743501072038,0.03,129.1,129.09,242.156972]
[1743501072953,0.03,129.1,129.09,249.903472]
[1743501078654,0.0001,129.1,129.09,26.743472]
[1743501082573,0.0001,129.1,129.09,18.996972]
[1743501082754,0.0001,129.1,129.09,26.743472]
[1743501086757,0.0001,129.1,129.09,249.843472]
[1743501088454,0.0001,129.1,129.09,242.096972]
[1743501090866,0.0001,129.1,129.09,249.843472]
[1743501092368,0.0001,129.1,129.09,26.743472]
[1743501096749,0.0001,129.1,129.09,249.843472]
[1743501098367,0.0001,129.1,129.09,242.096972]
[1743501099473,0.0001,129.1,129.09,249.843472]
[1743501103774,0.0001,129.1,129.09,242.096972]
[1743501104170,7.21775514,129.1,129.09,242.096972]
[1743501106182,0.0001,129.1,129.09,242.096972]
[1743501106367,7.21775514,129.1,129.09,242.096972]
[1743501109669,0.0001,129.1,129.09,242.096972]
[1743501111481,0.0001,129.1,129.09,249.843472]
[1743501112062,0.0001,129.1,129.09,242.096972]
[1743501112456,0.0001,129.1,129.09,249.843472]
[1743501115080,0.0001,129.1,129.09,242.096972]
[1743501115263,0.0001,129.1,129.09,249.843472]
[1743501122985,0.0001,129.1,129.09,242.096972]
[1743501123892,0.0001,129.1,129.09,249.843472]
[1743501125686,0.0001,129.1,129.09,242.096972]
[1743501126292,7.21775514,129.1,129.09,242.096972]
[1743501126496,7.21775514,129.1,129.09,223.163]
[1743501126497,88.91775514,129.1,129.09,223.163]
[1743501126870,14.96365514,129.1,129.09,223.163]
[1743501127076,20.0,129.07,129.06,243.12]
[1743501127290,27.21765514,129.07,129.06,243.12]
[1743501129578,27.21765514,129.07,129.06,243.12]
[1743501130681,27.21765514,129.07,129.06,243.40432314]
[1743501130882,27.21765514,129.08,129.06,269.802272]
[1743501131084,7.21765514,129.08,129.07,18.933972]
[1743501131294,81.7,129.09,129.08,20.28432314]
[1743501131295,88.91765514,129.09,129.08,20.28432314]
[1743501136203,88.91765514,129.09,129.08,20.34732314]
[1743501143404,96.66415514,129.09,129.08,20.063]
[1743501143996,96.36415514,129.09,129.08,20.063]
[1743501146685,14.96415514,129.09,129.08,20.063]
[1743501146985,81.7,129.08,129.06,243.12]
[1743501147188,20.0,129.05,129.04,20.0]
[1743501147390,27.21765514,129.05,129.04,20.0]
[1743501147797,34.96655514,129.05,129.04,20.0]
[1743501150189,81.7,129.04,129.03,0.063]
[1743501150391,88.91765514,129.04,129.03,0.063]
[1743501151193,81.4,129.04,129.03,0.34732314]
[1743501151502,88.61765514,129.04,129.03,0.34732314]
[1743501151985,96.36715514,129.04,129.03,0.063]
[1743501153809,100.20835122,129.04,129.03,0.063]
[1743501155584,18.80835122,129.04,129.03,0.063]
[1743501159908,14.96715514,129.04,129.03,0.063]
[1743501161113,14.96715514,129.04,128.99,243.28]